fUSD/lending_fUSD_20251201
["ID","MTS","AMOUNT","RATE_DAILY","PERIOD"]
[395326665,1764631457870,-255.0,0.00015338,2]
[395326666,1764631457889,-433.0,0.00016546,2]
[395326667,1764631457909,-735160.38068403,0.00017,2]
[395326668,1764631482464,-1000.0,0.00014216,2]
[395326669,1764631482484,-1000.0,0.00014216,2]
[395326670,1764631482505,-1000.0,0.00014216,2]
[395326671,1764631482525,-177.95564442,0.000169,2]
[395326672,1764631482544,-13658.3028382,0.0001698,2]
[395326673,1764631482564,-151.0,0.00016997,2]
[395326674,1764631482584,-402.58812379,0.00016999,2]
[395326675,1764631483042,-500.0,0.00016999,2]
[395326676,1764631483066,-304.84397038,0.00016999,2]
[395326677,1764631483087,-162805.30942321,0.00017,2]
[395326679,1764631518596,-272.48669872,0.00013799,2]
[395326688,1764631636477,-185.03511456,0.000136,2]
[395326689,1764631638532,-159.84893933,0.000136,2]
[395326690,1764631641122,-153.95889071,0.000136,2]
[395326696,1764631681474,-231.960615,0.0001363,2]
[395326697,1764631681499,-34.19700986,0.00013699,2]
[395326698,1764631683070,-247.61467679,0.00013699,2]
[395326699,1764631683091,-21.03816421,0.00013699,2]
[395326700,1764631696503,-128.96183579,0.00013699,2]
[395326701,1764631696527,-164.11593379,0.00013699,2]
[395326717,1764631831558,-5296.56563808,0.000136,2]
[395326719,1764631831568,-411.88406621,0.00013699,2]
[395326721,1764631831577,-1200.0,0.00013699,2]
[395326723,1764631831586,-300.0,0.00013699,2]
[395326724,1764631831596,-300.0,0.00013699,2]
[395326726,1764631831605,-150.0,0.00013699,2]
[395326728,1764631831615,-200.0,0.00013699,2]
[395326730,1764631831624,-1000.0,0.000137,2]
[395326731,1764631831633,-25365.71400287,0.000137,2]
[395326732,1764631831645,-78041.94318814,0.000137,2]
[395326733,1764631831656,-210162.76523017,0.000137,2]
[395326734,1764631831668,-820.7253007,0.000137,2]
[395326735,1764631831742,-525.42721578,0.000137,2]
[395326748,1764631837623,-197.26818065,0.00013699,2]
[395326749,1764631837634,-445083.42506234,0.000137,2]
[395326750,1764631837643,-1000.0,0.000137,2]
[395326751,1764631837652,-227.51330128,0.00013799,2]
[395326752,1764631837661,-202.5805669,0.00013799,2]
[395326753,1764631837671,-500.0,0.00013799,2]
[395326754,1764631837680,-500.0,0.00013799,2]
[395326755,1764631837689,-500.0,0.00013799,2]
[395326756,1764631837699,-500.0,0.00013799,2]
[395326757,1764631837708,-500.0,0.00013799,2]
[395326758,1764631837717,-500.0,0.00013799,2]
[395326759,1764631837726,-500.0,0.00013799,2]
[395326760,1764631837735,-564.2,0.00013799,2]
[395326761,1764631837744,-500.0,0.00013799,2]
[395326762,1764631837753,-500.0,0.00013799,2]
[395326763,1764631837762,-5296.56563808,0.00013967,2]
[395326764,1764631837772,-5296.56563808,0.00014333,2]
[395326765,1764631837781,-5296.56563808,0.000147,2]
[395326766,1764631837790,-255.0,0.00014822,2]
[395326767,1764631837800,-225.39616974,0.000149,2]
[395326768,1764631837810,-420.0,0.00015013,2]
[395326769,1764631837819,-1680.0,0.00015069,2]
[395326770,1764631837828,-293.3999565,0.0001537,2]
[395326771,1764631837837,-200.0,0.00015823,2]
[395326772,1764631837847,-7052.27,0.00015984,2]
[395326773,1764631837856,-236.37,0.00016006,2]
[395326774,1764631837865,-433.0,0.00016042,2]
[395326775,1764631837874,-166.66,0.00016139,2]
[395326776,1764631837884,-456.0,0.00016145,2]
[395326777,1764631837893,-73960.99818191,0.000162,5]
[395326778,1764631837902,-1524.0,0.00016325,2]
[395326779,1764631837912,-5888.0,0.00016385,2]
[395326780,1764631837921,-5888.0,0.00016419,2]
[395326781,1764631837930,-163.92,0.0001644,2]
[395326782,1764631837939,-587.0,0.00016452,2]
[395326783,1764631837948,-2351.0,0.00016576,2]
[395326784,1764631837957,-166.66,0.00016672,2]
[395326785,1764631837967,-30689.79995152,0.00016775,2]
[395326787,1764631838066,-401.32922357,0.00016775,2]
[395326789,1764631838077,-652.17683392,0.00016775,2]
[395326792,1764631838101,-923.18386228,0.00016775,2]
[395326794,1764631838110,-353.48093,0.0001683,2]
[395326796,1764631838119,-7391.301,0.000169,2]
[395326798,1764631838128,-197.02240292,0.000169,2]
[395326800,1764631838137,-487.07674341,0.000169,2]
[395326802,1764631838147,-429.3162258,0.000169,2]
[395326804,1764631838156,-1381.04370185,0.000169,2]
[395326806,1764631838166,-1771.0,0.00016946,2]
[395326808,1764631838176,-353.48094,0.0001695,2]
[395326810,1764631838185,-1235.66439348,0.00016961,2]
[395326812,1764631838195,-196.83392471,0.00016966,2]
[395326814,1764631838204,-500.0,0.00016973,2]
[395326816,1764631838213,-500.0,0.00016973,2]
[395326818,1764631838223,-500.0,0.00016973,2]
[395326820,1764631838232,-500.0,0.00016973,2]
[395326821,1764631838242,-500.0,0.00016973,2]
[395326822,1764631838251,-500.0,0.00016973,2]
[395326823,1764631838260,-500.0,0.00016973,2]
[395326824,1764631838270,-216753.23796165,0.00016976,2]
[395326966,1764631839687,-419.73193041,0.00015067,2]
[395327038,1764631839891,-4876.83370767,0.00015067,2]
[395327044,1764631840323,-249575.86227145,0.00016976,2]
[395327046,1764631840336,-234.0,0.0001698,2]
[395327048,1764631840347,-200.0,0.0001699,2]
[395327050,1764631840357,-500.0,0.0001699,2]
[395327052,1764631840368,-500.0,0.0001699,2]
[395327054,1764631840378,-500.0,0.0001699,2]
[395327056,1764631840398,-500.0,0.0001699,2]
[395327058,1764631840409,-500.0,0.0001699,2]
[395327060,1764631840419,-500.0,0.0001699,2]
[395327062,1764631840429,-500.0,0.0001699,2]
[395327064,1764631840442,-500.0,0.0001699,2]
[395327066,1764631840452,-500.0,0.0001699,2]
[395327068,1764631840463,-500.0,0.0001699,2]
[395327070,1764631840472,-500.0,0.0001699,2]
[395327072,1764631840482,-500.0,0.0001699,2]
[395327074,1764631840492,-500.0,0.0001699,2]
[395327076,1764631840502,-277.87175386,0.0001699,2]
[395327078,1764631840511,-500.0,0.0001699,2]
[395327080,1764631840520,-500.0,0.0001699,2]
[395327082,1764631840530,-500.0,0.0001699,2]
[395327084,1764631840539,-500.0,0.0001699,2]
[395327086,1764631840549,-500.0,0.0001699,2]
[395327088,1764631840560,-500.0,0.0001699,2]
[395327090,1764631840570,-237.3246584,0.0001699,2]
[395327092,1764631840579,-151.0,0.0001699,2]
[395327094,1764631840589,-151.0,0.0001699,2]
[395327096,1764631840599,-151.0,0.0001699,2]
[395327098,1764631840608,-151.0,0.0001699,2]
[395327100,1764631840617,-151.0,0.0001699,2]
[395327102,1764631840627,-151.0,0.0001699,2]
[395327104,1764631840642,-151.0,0.0001699,2]
[395327106,1764631840651,-151.0,0.0001699,2]
[395327108,1764631840662,-151.0,0.0001699,2]
[395327110,1764631840672,-151.0,0.0001699,2]
[395327112,1764631840682,-151.0,0.0001699,2]
[395327114,1764631840692,-151.0,0.0001699,2]
[395327116,1764631840701,-151.0,0.0001699,2]
[395327118,1764631840711,-151.0,0.0001699,2]
[395327120,1764631840719,-500.0,0.00016999,2]
[395327122,1764631840729,-500.0,0.00016999,2]
[395327124,1764631840738,-500.0,0.00016999,2]
[395327126,1764631840747,-500.0,0.00016999,2]
[395327128,1764631840756,-500.0,0.00016999,2]
[395327130,1764631840765,-236.346309,0.00016999,2]
[395327132,1764631840774,-386.00822049,0.00016999,2]
[395327134,1764631840783,-500.0,0.00016999,2]
[395327136,1764631840792,-500.0,0.00016999,2]
[395327138,1764631840802,-500.0,0.00016999,2]
[395327140,1764631840811,-500.0,0.00016999,2]
[395327142,1764631840820,-500.0,0.00016999,2]
[395327144,1764631840829,-152225.69781549,0.00017,2]
[395327146,1764631840838,-2000.0,0.00017,2]
[395327148,1764631840848,-250.0,0.00017,2]
[395327150,1764631840858,-425.55151211,0.00017,2]
[395327152,1764631840867,-200.0,0.00017,2]
[395327154,1764631840877,-2143158.67569309,0.00017,2]
[395327156,1764631840888,-834.00813526,0.00017,2]
[395327158,1764631840897,-250.681067,0.00017,2]
[395327160,1764631840906,-250.681067,0.00017,2]
[395327162,1764631840916,-250.681067,0.00017,2]
[395327164,1764631840925,-3803403.75967343,0.00017,2]
[395327166,1764631840934,-151.0,0.00017,2]
[395327168,1764631840943,-191.393216,0.00017,2]
[395327170,1764631840954,-887.0,0.00017088,2]
[395327172,1764631840963,-887.0,0.00017126,2]
[395327174,1764631840972,-200.0,0.0001717,2]
[395327176,1764631840981,-1220.55369096,0.00017187,2]
[395327178,1764631840990,-887.0,0.00017197,2]
[395327180,1764631840999,-166.66,0.00017205,2]
[395327182,1764631841009,-353.48093,0.0001721,2]
[395327184,1764631841019,-887.0,0.0001721,2]
[395327186,1764631841029,-691.79,0.00017214,2]
[395327188,1764631841040,-504.41,0.00017264,2]
[395327190,1764631841050,-154.83,0.00017273,2]
[395327192,1764631841061,-5888.0,0.0001733,2]
[395327194,1764631841070,-200.0,0.00017342,2]
[395327196,1764631841080,-836.0,0.00017351,2]
[395327198,1764631841089,-736.0,0.00017357,2]
[395327200,1764631841098,-394.0,0.00017385,2]
[395327202,1764631841107,-887.0,0.00017387,2]
[395327204,1764631841116,-500.0,0.00017401,2]
[395327206,1764631841125,-779.0,0.0001742,2]
[395327208,1764631841135,-1678.94327534,0.0001745,2]
[395327210,1764631841145,-353.48094,0.0001745,2]
[395327212,1764631841154,-270.0,0.00017455,2]
[395327214,1764631841163,-887.0,0.00017456,2]
[395327216,1764631841173,-3716.0,0.00017456,2]
[395327218,1764631841183,-887.0,0.00017482,2]
[395327220,1764631841192,-887.0,0.00017491,2]
[395327222,1764631841201,-1000.0,0.00017521,2]
[395327224,1764631841214,-1000.0,0.00017521,2]
[395327226,1764631841223,-1000.0,0.00017521,2]
[395327228,1764631841232,-371.11170021,0.00017521,2]
[395327230,1764631841242,-1000.0,0.00017521,2]
[395327232,1764631841252,-1000.0,0.00017521,2]
[395327234,1764631841260,-887.0,0.00017533,2]
[395327236,1764631841269,-504.41,0.00017538,2]
[395327238,1764631841279,-176.64235928,0.00017552,2]
[395327240,1764631841288,-498.84294458,0.0001757,2]
[395327242,1764631841297,-887.0,0.00017581,2]
[395327244,1764631841306,-3716.0,0.00017593,2]
[395327246,1764631841315,-887.0,0.00017594,2]
[395327248,1764631841324,-500.0,0.00017621,2]
[395327250,1764631841335,-5888.0,0.00017626,2]
[395327252,1764631841346,-8901.4351049,0.00017645,2]
[395327254,1764631841356,-353.48094,0.000177,2]
[395327256,1764631841366,-403.0,0.000177,5]
[395327258,1764631841375,-151.0,0.00017725,2]
[395327260,1764631841386,-150.99,0.00017728,2]
[395327262,1764631841395,-6214.9,0.00017728,2]
[395327264,1764631841404,-999.99,0.00017728,2]
[395327266,1764631841415,-299.99,0.00017728,4]
[395327268,1764631841424,-9999.99,0.00017728,2]
[395327269,1764631841433,-39342.02,0.00017728,2]
[395327272,1764631841442,-150.99,0.00017728,2]
[395327274,1764631841452,-422.8,0.00017728,2]
[395327276,1764631841461,-7043.97,0.00017728,2]
[395327278,1764631841471,-1114.06,0.00017728,2]
[395327280,1764631841480,-7336.69,0.00017728,2]
[395327281,1764631841489,-1539.43,0.00017728,2]
[395327283,1764631841499,-499.99,0.00017728,2]
[395327285,1764631841508,-9999.99,0.00017728,2]
[395327287,1764631841517,-308.28,0.00017728,2]
[395327289,1764631841527,-9999.99,0.00017728,2]
[395327292,1764631841536,-4993.69,0.00017728,2]
[395327293,1764631841545,-7605.04,0.00017728,2]
[395327296,1764631841555,-1526.69,0.00017728,2]
[395327298,1764631841565,-150.0,0.00017728,2]
[395327300,1764631841575,-177.61357475,0.00017728,2]
[395327302,1764631841584,-500.0,0.00017728,2]
[395327304,1764631841593,-282.03781084,0.00017728,2]
[395327306,1764631841603,-150.0,0.00017728,2]
[395327308,1764631841612,-150.0,0.00017728,2]
[395327310,1764631841621,-170.16025995,0.00017728,2]
[395327312,1764631841631,-150.0,0.00017728,2]
[395327314,1764631841642,-150.0,0.00017728,2]
[395327316,1764631841651,-500.0,0.00017728,2]
[395327318,1764631841661,-150.0,0.00017728,2]
[395327320,1764631841670,-500.0,0.00017728,2]
[395327322,1764631841680,-150.0,0.00017728,2]
[395327324,1764631841689,-3716.0,0.0001773,2]
[395327326,1764631841698,-166.66,0.00017737,2]
[395327328,1764631841707,-437.91877358,0.00017773,2]
[395327330,1764631841717,-500.0,0.00017773,2]
[395327332,1764631841726,-500.0,0.00017773,2]
[395327334,1764631841735,-500.0,0.00017773,2]
[395327336,1764631841744,-500.0,0.00017773,2]
[395327338,1764631841753,-506.88790336,0.00017773,2]
[395327340,1764631841762,-500.0,0.00017773,2]
[395327342,1764631841771,-500.0,0.00017773,2]
[395327344,1764631841780,-500.0,0.00017773,2]
[395327346,1764631841789,-500.0,0.00017773,2]
[395327348,1764631841798,-500.0,0.00017773,2]
[395327350,1764631841807,-500.0,0.00017773,2]
[395327352,1764631841817,-417.99684709,0.00017773,2]
[395327354,1764631841826,-500.0,0.00017773,2]
[395327356,1764631841836,-500.0,0.00017773,2]
[395327358,1764631841845,-500.0,0.00017773,2]
[395327360,1764631841855,-500.0,0.00017773,2]
[395327362,1764631841864,-500.0,0.00017773,2]
[395327364,1764631841874,-500.0,0.00017773,2]
[395327366,1764631841883,-217.00327303,0.00017773,2]
[395327368,1764631841892,-500.0,0.00017773,2]
[395327370,1764631841901,-343.65659263,0.00017773,2]
[395327372,1764631841911,-500.0,0.00017773,2]
[395327374,1764631841920,-161.13698204,0.00017773,2]
[395327376,1764631841929,-500.0,0.00017773,2]
[395327378,1764631841939,-500.0,0.00017773,2]
[395327380,1764631841948,-500.0,0.00017773,2]
[395327382,1764631841957,-160.60246815,0.00017773,2]
[395327384,1764631841966,-500.0,0.00017773,2]
[395327386,1764631841975,-887.0,0.00017775,2]
[395327388,1764631841984,-504.41,0.00017812,2]
[395327390,1764631841993,-887.0,0.00017819,2]
[395327392,1764631842003,-887.0,0.00017847,2]
[395327394,1764631842013,-150.0,0.00017865,2]
[395327396,1764631842022,-500.0,0.00017865,2]
[395327398,1764631842031,-150.0,0.00017865,2]
[395327400,1764631842040,-150.0,0.00017865,2]
[395327402,1764631842049,-150.0,0.00017865,2]
[395327404,1764631842059,-150.0,0.00017865,2]
[395327406,1764631842068,-500.0,0.00017865,2]
[395327408,1764631842078,-500.0,0.00017865,2]
[395327410,1764631842086,-150.0,0.00017865,2]
[395327412,1764631842095,-3716.0,0.00017867,2]
[395327414,1764631842104,-887.0,0.00017871,2]
[395327416,1764631842113,-887.0,0.00017874,2]
[395327418,1764631842123,-887.0,0.00017892,2]
[395327420,1764631842132,-353.48093,0.0001795,2]
[395327422,1764631842141,-224.89028816,0.00018,2]
[395327424,1764631842150,-886.86127489,0.00018,2]
[395327426,1764631842159,-1182.9457174,0.00018,2]
[395327428,1764631842168,-150.0,0.00018002,2]
[395327430,1764631842177,-500.0,0.00018002,2]
[395327432,1764631842186,-150.0,0.00018002,2]
[395327434,1764631842195,-289.17469547,0.00018002,2]
[395327436,1764631842204,-250.0,0.00018002,2]
[395327438,1764631842213,-500.0,0.00018002,2]
[395327440,1764631842222,-500.0,0.00018002,2]
[395327442,1764631842234,-150.0,0.00018002,2]
[395327444,1764631842243,-3716.0,0.00018004,2]
[395327446,1764631842252,-887.0,0.00018036,2]
[395327448,1764631842261,-1500.0,0.00018068,2]
[395327450,1764631842271,-1500.0,0.00018068,2]
[395327452,1764631842279,-906.39057389,0.00018068,2]
[395327454,1764631842289,-1500.0,0.00018068,2]
[395327456,1764631842298,-548.61602127,0.00018068,2]
[395327458,1764631842307,-1000.0,0.00018082,2]
[395327460,1764631842317,-504.41,0.00018086,2]
[395327462,1764631842326,-1768.19111558,0.000181,2]
[395327464,1764631842337,-250.0,0.00018101,2]
[395327465,1764631842346,-887.0,0.00018131,2]
[395327466,1764631842356,-154.83,0.00018137,2]
[395327467,1764631842366,-150.0,0.00018139,2]
[395327468,1764631842376,-500.0,0.00018139,2]
[395327469,1764631842386,-150.0,0.00018139,2]
[395327471,1764631842396,-350.0,0.00018139,2]
[395327473,1764631842406,-412.0,0.00018139,2]
[395327474,1764631842415,-200.0,0.00018139,2]
[395327476,1764631842425,-3716.0,0.00018141,2]
[395327478,1764631842434,-3292.0,0.00018233,2]
[395327480,1764631842444,-887.0,0.00018262,2]
[395327482,1764631842453,-166.66,0.0001827,2]
[395327484,1764631842462,-150.0,0.00018276,2]
[395327486,1764631842472,-500.0,0.00018276,2]
[395327488,1764631842481,-265.01712022,0.00018276,2]
[395327490,1764631842491,-3716.0,0.00018278,2]
[395327492,1764631842500,-500.0,0.0001832,2]
[395327493,1764631842509,-1000.0,0.00018321,2]
[395327494,1764631842518,-1000.0,0.00018321,2]
[395327496,1764631842527,-1000.0,0.00018321,2]
[395327498,1764631842536,-500.0,0.00018321,2]
[395327500,1764631842546,-1000.0,0.00018321,2]
[395327501,1764631842555,-501.01990222,0.00018321,2]
[395327503,1764631842564,-1000.0,0.00018321,2]
[395327505,1764631842573,-1000.0,0.00018321,2]
[395327508,1764631842583,-340.25647055,0.00018321,2]
[395327509,1764631842592,-1000.0,0.00018321,2]
[395327512,1764631842601,-830.40161018,0.00018321,2]
[395327514,1764631842610,-1000.0,0.00018321,2]
[395327515,1764631842619,-1000.0,0.00018321,2]
[395327517,1764631842628,-1000.0,0.00018321,2]
[395327519,1764631842638,-1000.0,0.00018321,2]
[395327522,1764631842648,-735.62922369,0.00018321,2]
[395327524,1764631842656,-1000.0,0.00018321,2]
[395327525,1764631842666,-1000.0,0.00018321,2]
[395327528,1764631842675,-1000.0,0.00018327,2]
[395327529,1764631842685,-887.0,0.00018348,2]
[395327531,1764631842694,-504.45,0.0001836,2]
[395327533,1764631842703,-3716.0,0.00018415,2]
[395327535,1764631842712,-3716.0,0.00018552,2]
[395327537,1764631842721,-2000.0,0.00018616,2]
[395327539,1764631842730,-2012.94453899,0.00018616,2]
[395327541,1764631842739,-1500.0,0.00018616,2]
[395327543,1764631842748,-240.87,0.00018675,2]
[395327545,1764631842757,-349.74,0.00018675,2]
[395327548,1764631842766,-3716.0,0.00018689,2]
[395327549,1764631842775,-1000.0,0.0001876,2]
[395327551,1764631842784,-1252.0,0.00018781,2]
[395327554,1764631842794,-150.74,0.000188,2]
[395327556,1764631842803,-150.74,0.000188,2]
[395327558,1764631842812,-150.74,0.000188,2]
[395327560,1764631842824,-150.74,0.000188,2]
[395327562,1764631842833,-150.74,0.000188,2]
[395327564,1764631842842,-166.66,0.00018803,2]
[395327566,1764631842852,-3716.0,0.00018826,2]
[395327568,1764631842861,-1500.0,0.00018868,2]
[395327570,1764631842870,-1500.0,0.00018868,2]
[395327572,1764631842879,-1115.0167694,0.00018868,2]
[395327574,1764631842890,-1500.0,0.00018868,2]
[395327576,1764631842899,-785.59979917,0.00018868,2]
[395327578,1764631842908,-821.75094546,0.00018868,2]
[395327580,1764631842917,-1500.0,0.00018868,2]
[395327582,1764631842926,-1500.0,0.00018868,2]
[395327584,1764631842935,-1011.73595353,0.00018868,2]
[395327586,1764631842944,-1500.0,0.00018868,2]
[395327588,1764631842953,-1500.0,0.00018868,2]
[395327590,1764631842963,-1500.0,0.00018868,2]
[395327592,1764631842973,-1500.0,0.00018868,2]
[395327594,1764631842982,-691.79,0.00018935,2]
[395327596,1764631842992,-3716.0,0.00018963,2]
[395327598,1764631843002,-205.36370991,0.00019,2]
[395327600,1764631843012,-9396.28979361,0.00019,2]
[395327602,1764631843021,-300.0,0.00019,2]
[395327604,1764631843031,-797.05384022,0.00019,2]
[395327606,1764631843041,-154.83,0.00019,2]
[395327608,1764631843050,-355.79498231,0.0001901,7]
[395327610,1764631843059,-200.16875991,0.00019082,2]
[395327612,1764631843069,-104052.0868169,0.00019131,2]
[395327614,1764631843078,-3047.5792996,0.00019135,2]
[395327616,1764631843088,-2500.0,0.00019164,2]
[395327618,1764631843099,-151.0,0.00019178,2]
[395327620,1764631843109,-1430.47,0.00019237,2]
[395327622,1764631843118,-1000.0,0.00019416,2]
[395327624,1764631843127,-1655.79435701,0.00019416,2]
[395327626,1764631843138,-408.79273866,0.00019416,2]
[395327628,1764631843148,-500.0,0.00019416,2]
[395327631,1764631843157,-1597.62353283,0.00019416,2]
[395327633,1764631843167,-2000.0,0.00019416,2]
[395327635,1764631843176,-2000.0,0.00019416,2]
[395327637,1764631843186,-855.12475852,0.00019416,2]
[395327638,1764631843194,-1000.0,0.00019438,2]
[395327641,1764631843204,-23217.1587952,0.00019612,2]
[395327643,1764631843213,-680.0068571,0.00019616,2]
[395327645,1764631843222,-23094.0,0.000197,2]
[395327647,1764631843232,-3000.0,0.00019712,2]
[395327648,1764631843242,-500.0,0.00019726,2]
[395327651,1764631843251,-500.0,0.00019726,2]
[395327652,1764631843260,-500.0,0.00019726,2]
[395327654,1764631843270,-500.0,0.00019726,2]
[395327656,1764631843279,-500.0,0.00019726,2]
[395327659,1764631843288,-500.0,0.00019726,2]
[395327661,1764631843298,-210.00157136,0.00019726,2]
[395327663,1764631843307,-156.587,0.00019726,2]
[395327664,1764631843316,-207.4,0.00019729,2]
[395327667,1764631843326,-250.0,0.000198,5]
[395327668,1764631843338,-154.83,0.00019864,2]
[395327670,1764631843348,-1381.04370182,0.00019904,2]
[395327672,1764631843357,-330.86865858,0.00019964,2]
[395327675,1764631843367,-1755.78264083,0.00019964,2]
[395327677,1764631843377,-225.0,0.00019979,2]
[395327679,1764631843388,-10857.07834605,0.0002,2]
[395327680,1764631843397,-265562.66181528,0.0002,5]
[395327682,1764631843407,-3950.0,0.0002,2]
[395327684,1764631843419,-7248.16555651,0.0002,2]
[395327687,1764631843428,-1287.11719734,0.0002,2]
[395327689,1764631843438,-1038.91795154,0.0002,2]
[395327691,1764631843447,-2847.06226951,0.0002,2]
[395327693,1764631843456,-414.33585294,0.0002,2]
[395327694,1764631843465,-12851.07795029,0.0002,2]
[395327696,1764631843474,-1000.0,0.0002,7]
[395327699,1764631843484,-8720.0,0.0002001,2]
[395327701,1764631843494,-2434.0,0.00020057,2]
[395327703,1764631843503,-1000.0,0.00020116,2]
[395327705,1764631843513,-657.41,0.00020187,2]
[395327707,1764631843522,-2009.43750154,0.000202,2]
[395327709,1764631843532,-500.0,0.00020219,2]
[395327711,1764631843541,-162.380719,0.00020274,2]
[395327713,1764631843551,-500.0,0.00020293,2]
[395327715,1764631843560,-2129.0,0.00020316,2]
[395327717,1764631843569,-500.0,0.00020375,2]
[395327719,1764631843578,-1000.0,0.00020618,2]
[395327721,1764631843587,-691.79,0.00020657,2]
[395327723,1764631843597,-2000.0,0.000207,2]
[395327725,1764631843607,-5523.0,0.000207,3]
[395327727,1764631843616,-154.83,0.00020727,2]
[395327729,1764631843625,-1000.0,0.00020795,2]
[395327731,1764631843635,-4000.0,0.00020808,2]
[395327733,1764631843644,-168.3888056,0.00020822,2]
[395327735,1764631843653,-500.0,0.00020873,2]
[395327737,1764631843663,-526.73600566,0.00021064,2]
[395327739,1764631843672,-373.2366173,0.00021356,2]
[395327741,1764631843682,-174.61919141,0.0002137,2]
[395327743,1764631843691,-236.37,0.00021443,2]
[395327745,1764631843700,-7071.92961817,0.000215,2]
[395327747,1764631843709,-498.84294458,0.0002154,2]
[395327749,1764631843719,-5523.0,0.000217,5]
[395327750,1764631843729,-29999.99,0.00021757,2]
[395327752,1764631843738,-1191.27,0.00021757,2]
[395327755,1764631843747,-3278.56,0.00021757,2]
[395327756,1764631843756,-5000.0,0.00021918,2]
[395327758,1764631843765,-181.08010149,0.00021918,2]
[395327760,1764631843774,-225.0,0.00021985,2]
[395327763,1764631843784,-463.0,0.00021987,2]
[395327765,1764631843793,-163.0,0.00022,2]
[395327767,1764631843803,-153.0,0.00022,2]
[395327769,1764631843812,-163.0,0.00022,2]
[395327771,1764631843821,-153.0,0.00022,2]
[395327772,1764631843830,-163.0,0.00022,2]
[395327775,1764631843841,-153.0,0.00022,2]
[395327776,1764631843850,-174.23068389,0.00022,2]
[395327779,1764631843860,-153.0,0.00022,2]
[395327780,1764631843869,-153.0,0.00022,2]
[395327783,1764631843879,-153.0,0.00022,2]
[395327784,1764631843888,-153.0,0.00022,2]
[395327787,1764631843898,-153.0,0.00022,2]
[395327788,1764631843907,-225.46748119,0.00022,2]
[395327790,1764631843917,-157.0,0.00022,2]
[395327792,1764631843926,-150.0,0.00022,14]
[395327794,1764631843935,-152.0,0.00022,2]
[395327796,1764631843945,-152.0,0.00022,2]
[395327799,1764631843954,-152.0,0.00022,2]
[395327801,1764631843963,-152.0,0.00022,2]
[395327803,1764631843972,-152.0,0.00022,2]
[395327805,1764631843979,-152.0,0.00022,2]
[395327807,1764631843986,-152.0,0.00022,2]
[395327809,1764631843995,-152.0,0.00022,2]
[395327811,1764631844005,-152.0,0.00022,2]
[395327813,1764631844014,-152.0,0.00022,2]
[395327815,1764631844023,-152.0,0.00022,2]
[395327817,1764631844033,-152.0,0.00022,2]
[395327819,1764631844042,-152.0,0.00022,2]
[395327821,1764631844051,-152.0,0.00022,2]
[395327823,1764631844060,-152.0,0.00022,2]
[395327825,1764631844069,-5610.15,0.00022,7]
[395327827,1764631844078,-1920.55,0.00022006,2]
[395327829,1764631844087,-500.0,0.00022248,2]
[395327831,1764631844096,-187.78006525,0.00022466,2]
[395327833,1764631844106,-192.6,0.00022468,2]
[395327835,1764631844115,-156.7335532,0.00022666,2]
[395327837,1764631844124,-500.0,0.00022683,2]
[395327839,1764631844133,-500.0,0.00022768,2]
[395327841,1764631844142,-304.0,0.000229,2]